fUSD/lending_fUSD_20240529
["ID","MTS","AMOUNT","RATE_DAILY","PERIOD"]
[328181324,1717015844274,-312.12727184,0.00019178,2]
[328181325,1717015844283,-500.0,0.00019178,2]
[328181326,1717015844292,-500.0,0.00019178,2]
[328181327,1717015844301,-306.27107625,0.00019178,2]
[328181328,1717015844310,-500.0,0.00019178,2]
[328181329,1717015844319,-500.0,0.00019178,2]
[328181330,1717015844329,-632.41668407,0.00019178,2]
[328181331,1717015844338,-500.0,0.00019178,2]
[328181332,1717015844347,-500.0,0.00019178,2]
[328181333,1717015844356,-500.0,0.00019178,2]
[328181334,1717015844365,-500.0,0.00019178,2]
[328181335,1717015844374,-425.08988441,0.00019178,2]
[328181336,1717015844383,-367.2467228,0.00019178,2]
[328181337,1717015844392,-449.90074532,0.00019178,2]
[328181338,1717015844401,-500.0,0.00019178,2]
[328181339,1717015844412,-500.0,0.00019178,2]
[328181340,1717015844421,-500.0,0.00019178,2]
[328181341,1717015844430,-500.0,0.00019178,2]
[328181342,1717015844440,-500.0,0.00019178,2]
[328181343,1717015844456,-500.0,0.00019178,2]
[328181344,1717015844474,-500.0,0.00019178,2]
[328181345,1717015844483,-500.0,0.00019178,2]
[328181346,1717015844492,-500.0,0.00019178,2]
[328181347,1717015844501,-500.0,0.00019178,2]
[328181348,1717015844511,-500.0,0.00019178,2]
[328181349,1717015844519,-500.0,0.00019178,2]
[328181350,1717015844528,-500.0,0.00019178,2]
[328181351,1717015844537,-500.0,0.00019178,2]
[328181352,1717015844546,-500.0,0.00019178,2]
[328181353,1717015844555,-500.0,0.00019178,2]
[328181354,1717015844564,-500.0,0.00019178,2]
[328181355,1717015844573,-500.0,0.00019178,2]
[328181356,1717015844582,-500.0,0.00019178,2]
[328181357,1717015844591,-500.0,0.00019178,2]
[328181358,1717015844600,-500.0,0.00019178,2]
[328181359,1717015844609,-500.0,0.00019178,2]
[328181360,1717015844619,-500.0,0.00019178,2]
[328181361,1717015844628,-500.0,0.00019178,2]
[328181362,1717015844641,-500.0,0.00019178,2]
[328181363,1717015844650,-500.0,0.00019178,2]
[328181364,1717015844660,-500.0,0.00019178,2]
[328181365,1717015844669,-500.0,0.00019178,2]
[328181366,1717015844678,-500.0,0.00019178,2]
[328181367,1717015844688,-500.0,0.00019178,2]
[328181368,1717015844699,-500.0,0.00019178,2]
[328181369,1717015844710,-346.82627604,0.00019178,2]
[328181370,1717015844720,-500.0,0.00019178,2]
[328181371,1717015844729,-500.0,0.00019178,2]
[328181372,1717015844739,-500.0,0.00019178,2]
[328181373,1717015844748,-500.0,0.00019178,2]
[328181374,1717015844759,-500.0,0.00019178,2]
[328181375,1717015844769,-500.0,0.00019178,2]
[328181376,1717015844779,-500.0,0.00019178,2]
[328181377,1717015844791,-500.0,0.00019178,2]
[328181378,1717015844801,-500.0,0.00019178,2]
[328181379,1717015844811,-500.0,0.00019178,2]
[328181380,1717015844821,-500.0,0.00019178,2]
[328181381,1717015844830,-500.0,0.00019178,2]
[328181382,1717015844839,-500.0,0.00019178,2]
[328181383,1717015844950,-500.0,0.00019178,2]
[328181384,1717015844960,-500.0,0.00019178,2]
[328181385,1717015844970,-500.0,0.00019178,2]
[328181386,1717015844979,-500.0,0.00019178,2]
[328181387,1717015844990,-500.0,0.00019178,2]
[328181388,1717015844999,-500.0,0.00019178,2]
[328181389,1717015845010,-500.0,0.00019178,2]
[328181390,1717015845021,-500.0,0.00019178,2]
[328181391,1717015845031,-500.0,0.00019178,2]
[328181392,1717015845040,-500.0,0.00019178,2]
[328181393,1717015845050,-500.0,0.00019178,2]
[328181394,1717015845060,-500.0,0.00019178,2]
[328181395,1717015845070,-500.0,0.00019178,2]
[328181396,1717015845079,-500.0,0.00019178,2]
[328181397,1717015845089,-500.0,0.00019178,2]
[328181398,1717015845098,-500.0,0.00019178,2]
[328181399,1717015845107,-500.0,0.00019178,2]
[328181400,1717015845117,-500.0,0.00019178,2]
[328181401,1717015845127,-500.0,0.00019178,2]
[328181402,1717015845136,-500.0,0.00019178,2]
[328181403,1717015845145,-500.0,0.00019178,2]
[328181404,1717015845154,-500.0,0.00019178,2]
[328181405,1717015845164,-500.0,0.00019178,2]
[328181406,1717015845173,-500.0,0.00019178,2]
[328181407,1717015845182,-500.0,0.00019178,2]
[328181408,1717015845191,-500.0,0.00019178,2]
[328181409,1717015845201,-500.0,0.00019178,2]
[328181410,1717015845210,-500.0,0.00019178,2]
[328181411,1717015845219,-500.0,0.00019178,2]
[328181412,1717015845228,-500.0,0.00019178,2]
[328181413,1717015845237,-500.0,0.00019178,2]
[328181414,1717015845247,-500.0,0.00019178,2]
[328181415,1717015845257,-500.0,0.00019178,2]
[328181416,1717015845266,-500.0,0.00019178,2]
[328181417,1717015845277,-500.0,0.00019178,2]
[328181418,1717015845287,-500.0,0.00019178,2]
[328181419,1717015845296,-500.0,0.00019178,2]
[328181420,1717015845306,-500.0,0.00019178,2]
[328181421,1717015845316,-500.0,0.00019178,2]
[328181422,1717015845325,-500.0,0.00019178,2]
[328181423,1717015845336,-151.0,0.00019178,2]
[328181424,1717015845345,-151.0,0.00019178,2]
[328181425,1717015845355,-151.0,0.00019178,2]
[328181426,1717015845365,-151.0,0.00019178,2]
[328181427,1717015845374,-151.0,0.00019178,2]
[328181428,1717015845383,-212.063779,0.00019178,2]
[328181429,1717015845392,-151.0,0.00019178,2]
[328181430,1717015845401,-379.358604,0.00019178,2]
[328181431,1717015845410,-379.358604,0.00019178,2]
[328181432,1717015845420,-151.0,0.00019178,2]
[328181433,1717015845429,-173.6549,0.00019178,2]
[328181434,1717015845439,-151.0,0.00019178,2]
[328181435,1717015845451,-151.0,0.00019178,2]
[328181436,1717015845460,-246.097025,0.00019178,2]
[328181437,1717015845469,-246.097025,0.00019178,2]
[328181438,1717015845479,-151.0,0.00019178,2]
[328181439,1717015845489,-151.0,0.00019178,2]
[328181440,1717015845498,-151.0,0.00019178,2]
[328181441,1717015845508,-803.843456,0.00019178,2]
[328181442,1717015845517,-151.0,0.00019178,2]
[328181443,1717015845528,-151.0,0.00019178,2]
[328181444,1717015845538,-803.843456,0.00019178,2]
[328181445,1717015845547,-244.471996,0.00019178,2]
[328181446,1717015845557,-244.471996,0.00019178,2]
[328181447,1717015845566,-151.0,0.00019178,2]
[328181448,1717015845575,-840.0,0.00019178,2]
[328181449,1717015845584,-840.0,0.00019178,2]
[328181451,1717015845594,-2216.68,0.00019178,2]
[328181453,1717015845603,-151.0,0.00019178,2]
[328181454,1717015845612,-151.0,0.00019178,2]
[328181455,1717015845621,-151.0,0.00019178,2]
[328181456,1717015845631,-151.0,0.00019178,2]
[328181457,1717015845640,-151.0,0.00019178,2]
[328181458,1717015845649,-151.0,0.00019178,2]
[328181459,1717015845659,-3885.71161861,0.000192,2]
[328181460,1717015845669,-161.284363,0.0001921,2]
[328181461,1717015845678,-433.098541,0.00019368,2]
[328181462,1717015845688,-208.773201,0.00019368,2]
[328181464,1717015845697,-328.090213,0.00019368,2]
[328181465,1717015845706,-592.393092,0.00019368,2]
[328181467,1717015845716,-354.204038,0.00019452,2]
[328181469,1717015845725,-7359.55983788,0.00019484,2]
[328181471,1717015845735,-161.284363,0.00019525,2]
[328181473,1717015845744,-433.098541,0.00019604,2]
[328181475,1717015845753,-208.773201,0.00019604,2]
[328181477,1717015845763,-328.090213,0.00019604,2]
[328181479,1717015845773,-592.393092,0.00019604,2]
[328181480,1717015845782,-196.4601,0.00019791,2]
[328181482,1717015845792,-196.4601,0.00019791,2]
[328181484,1717015845801,-68602.90277567,0.00019791,2]
[328181486,1717015845811,-6409.46393819,0.00019839,2]
[328181488,1717015845821,-151.0,0.0001984,2]
[328181490,1717015845830,-161.284363,0.0001984,2]
[328181492,1717015845840,-433.098541,0.0001984,2]
[328181493,1717015845849,-208.773201,0.0001984,2]
[328181494,1717015845858,-328.090213,0.0001984,2]
[328181495,1717015845868,-592.393092,0.0001984,2]
[328181496,1717015845877,-215.045819,0.0001984,2]
[328181497,1717015845886,-187.537289,0.0001984,2]
[328181498,1717015845895,-177.272045,0.0001984,2]
[328181499,1717015845904,-210.262374,0.0001984,2]
[328181500,1717015845914,-167.400919,0.0001984,2]
[328181501,1717015845924,-592.83,0.000199,2]
[328181502,1717015845934,-151.0,0.000199,2]
[328181503,1717015845943,-151.0,0.000199,2]
[328181504,1717015845952,-151.0,0.000199,2]
[328181505,1717015845962,-11454.98908393,0.000199,2]
[328181506,1717015845971,-11454.98908391,0.000199,2]
[328181507,1717015845981,-20296.90047364,0.000199,2]
[328181508,1717015845990,-11454.98908391,0.000199,2]
[328181509,1717015846000,-813.8170804,0.000199,2]
[328181510,1717015846010,-243.0,0.00019979,2]
[328181511,1717015846019,-213.90958239,0.0002,2]
[328181512,1717015846028,-155.0,0.0002,2]
[328181513,1717015846037,-1773.62143972,0.0002,2]
[328181514,1717015846046,-510.21195869,0.0002,2]
[328181515,1717015846055,-1000.0,0.0002,3]
[328181516,1717015846065,-1130.39293585,0.0002,2]
[328181517,1717015846074,-865.18783003,0.0002,2]
[328181518,1717015846083,-155.36149194,0.0002,4]
[328181519,1717015846093,-158.63331338,0.0002,2]
[328181520,1717015846102,-155.0,0.0002,2]
[328181521,1717015846111,-5190.83936008,0.0002,2]
[328181522,1717015846121,-6245.03715167,0.0002,2]
[328181523,1717015846130,-189065.69294696,0.0002,4]
[328181524,1717015846141,-1761.06242246,0.0002,2]
[328181525,1717015846151,-4545.41659109,0.0002,2]
[328181526,1717015846164,-681.7159055,0.0002,2]
[328181528,1717015846254,-498.0,0.0002,2]
[328181530,1717015846263,-344.0,0.0002,2]
[328181531,1717015846273,-689.0,0.0002,2]
[328181532,1717015846284,-155.31111537,0.0002,2]
[328181533,1717015846294,-155.34649765,0.0002,2]
[328181534,1717015846304,-155.49292776,0.0002,2]
[328181535,1717015846313,-784.86411314,0.0002,2]
[328181536,1717015846322,-544.60724475,0.0002,2]
[328181550,1717015846779,-144.39275525,0.0002,2]
[328181551,1717015846795,-6030.4061922,0.0002,2]
[328181552,1717015846810,-39275.0,0.0002,2]
[328181553,1717015846825,-188.486539,0.0002,2]
[328181554,1717015846840,-151.0,0.0002,2]
[328181555,1717015846854,-151.0,0.0002,2]
[328181556,1717015846869,-151.0,0.0002,2]
[328181557,1717015846885,-192.606882,0.0002,2]
[328181558,1717015846900,-151.0,0.0002,2]
[328181559,1717015846916,-379.358604,0.0002,2]
[328181560,1717015846931,-379.358604,0.0002,2]
[328181561,1717015846946,-151.0,0.0002,2]
[328181562,1717015846960,-182.351846,0.0002,2]
[328181563,1717015846974,-246.097025,0.0002,2]
[328181564,1717015846990,-246.097025,0.0002,2]
[328181565,1717015847004,-151.0,0.0002,2]
[328181566,1717015847019,-151.0,0.0002,2]
[328181567,1717015847034,-151.0,0.0002,2]
[328181568,1717015847049,-803.843456,0.0002,2]
[328181569,1717015847064,-151.0,0.0002,2]
[328181570,1717015847079,-803.843456,0.0002,2]
[328181571,1717015847094,-244.471996,0.0002,2]
[328181572,1717015847108,-244.471996,0.0002,2]
[328181573,1717015847123,-151.0,0.0002,2]
[328181574,1717015847137,-840.0,0.0002,2]
[328181575,1717015847151,-840.0,0.0002,2]
[328181576,1717015847166,-196.4601,0.0002,2]
[328181577,1717015847180,-150.0,0.0002,2]
[328181578,1717015847196,-196.4601,0.0002,2]
[328181579,1717015847211,-150.0,0.0002,2]
[328181580,1717015847226,-1000.0,0.0002,2]
[328181581,1717015847240,-151.0,0.0002,2]
[328181582,1717015847254,-226.37143728,0.000201,2]
[328181583,1717015847271,-1520.67512482,0.00020186,2]
[328181584,1717015847285,-237.25072652,0.00020233,2]
[328181585,1717015847296,-354.204038,0.00020274,2]
[328181586,1717015847305,-151.0,0.00020333,2]
[328181587,1717015847316,-151.0,0.00020333,2]
[328181588,1717015847472,-151.0,0.00020333,2]
[328181589,1717015847483,-151.0,0.00020333,2]
[328181590,1717015847495,-379.358604,0.00020333,2]
[328181591,1717015847505,-379.358604,0.00020333,2]
[328181592,1717015847514,-246.89,0.00020447,2]
[328181593,1717015847524,-158.98,0.00020447,2]
[328181594,1717015847534,-150.0,0.000205,2]
[328181595,1717015847543,-150.0,0.000205,2]
[328181596,1717015847552,-800.0,0.00020548,2]
[328181597,1717015847561,-800.0,0.00020548,2]
[328181598,1717015847571,-800.0,0.00020548,2]
[328181599,1717015847580,-11724.0,0.000206,3]
[328181600,1717015847590,-1000.0,0.00021,2]
[328181601,1717015847600,-1151.13114554,0.00021,2]
[328181602,1717015847609,-1181.886807,0.00021,2]
[328181603,1717015847618,-150.0,0.00021,2]
[328181604,1717015847627,-150.0,0.00021,2]
[328181605,1717015847636,-7359.55983788,0.0002113,2]
[328181606,1717015847645,-150.56,0.00021209,2]
[328181607,1717015847654,-11724.0,0.000213,5]
[328181608,1717015847664,-360.52198616,0.00021468,2]
[328181609,1717015847674,-150.0,0.000215,3]
[328181610,1717015847683,-150.0,0.000215,3]
[328181611,1717015847692,-1000.0,0.000219,2]
[328181612,1717015847702,-1273.7,0.00021918,2]
[328181613,1717015847711,-250.0,0.00021918,2]
[328181614,1717015847720,-310.49,0.00021918,2]
[328181615,1717015847729,-2000.0,0.00021918,2]
[328181616,1717015847738,-349.649319,0.00021918,2]
[328181617,1717015847747,-349.649319,0.00021918,2]
[328181618,1717015847757,-349.649319,0.00021918,2]
[328181619,1717015847766,-349.649319,0.00021918,2]
[328181620,1717015847775,-349.649319,0.00021918,2]
[328181621,1717015847786,-349.649319,0.00021918,2]
[328181622,1717015847794,-349.649319,0.00021918,2]
[328181623,1717015847805,-349.649319,0.00021918,2]
[328181624,1717015847814,-349.649319,0.00021918,2]
[328181625,1717015847826,-349.649319,0.00021918,2]
[328181626,1717015847837,-349.649319,0.00021918,2]
[328181627,1717015847846,-349.649319,0.00021918,2]
[328181628,1717015847855,-349.649319,0.00021918,2]
[328181629,1717015847865,-349.649319,0.00021918,2]
[328181630,1717015847874,-349.649319,0.00021918,2]
[328181631,1717015847883,-349.649319,0.00021918,2]
[328181632,1717015847893,-363.188872,0.00021918,2]
[328181633,1717015847902,-363.188872,0.00021918,2]
[328181634,1717015847911,-363.188872,0.00021918,2]
[328181635,1717015847920,-363.188872,0.00021918,2]
[328181636,1717015847929,-363.188872,0.00021918,2]
[328181637,1717015847939,-363.188872,0.00021918,2]
[328181638,1717015847949,-363.188872,0.00021918,2]
[328181639,1717015847958,-363.188872,0.00021918,2]
[328181640,1717015847967,-363.188872,0.00021918,2]
[328181641,1717015847976,-363.188872,0.00021918,2]
[328181642,1717015847985,-363.188872,0.00021918,2]
[328181643,1717015847994,-363.188872,0.00021918,2]
[328181644,1717015848004,-363.188872,0.00021918,2]
[328181645,1717015848013,-363.188872,0.00021918,2]
[328181646,1717015848023,-363.188872,0.00021918,2]
[328181647,1717015848032,-363.188872,0.00021918,2]
[328181648,1717015848041,-177.16,0.00021918,2]
[328181649,1717015848050,-150.0,0.00021918,2]
[328181650,1717015848059,-150.0,0.00021918,2]
[328181651,1717015848068,-150.0,0.00021918,2]
[328181652,1717015848078,-150.0,0.00021918,2]
[328181653,1717015848087,-150.0,0.00021918,2]
[328181654,1717015848096,-1000.0,0.00022,3]
[328181655,1717015848105,-311.35802759,0.00022,2]
[328181656,1717015848114,-9163.1503525,0.00022,2]
[328181657,1717015848123,-159.0,0.00022,2]
[328181658,1717015848132,-155.0,0.00022,2]
[328181659,1717015848141,-592.83,0.00022,2]
[328181660,1717015848150,-150.0,0.00022,3]
[328181661,1717015848160,-150.0,0.00022,3]
[328181662,1717015848169,-68602.90277567,0.00022013,2]
[328181663,1717015848178,-151.0,0.00022013,7]
[328181664,1717015848187,-6409.46393819,0.00022072,2]
[328181665,1717015848196,-151.0,0.00022132,7]
[328181666,1717015848204,-246.097025,0.00022132,7]
[328181667,1717015848213,-246.097025,0.00022132,7]
[328181668,1717015848222,-151.0,0.00022132,7]
[328181669,1717015848231,-283.676904,0.00022132,7]
[328181670,1717015848240,-840.0,0.00022132,7]
[328181671,1717015848249,-840.0,0.00022132,7]
[328181672,1717015848258,-151.0,0.00022468,7]
[328181673,1717015848267,-151.0,0.00022468,7]
[328181674,1717015848277,-151.0,0.00022468,7]
[328181675,1717015848286,-151.0,0.00022468,7]
[328181676,1717015848295,-379.358604,0.00022468,7]
[328181677,1717015848304,-379.358604,0.00022468,7]
[328181678,1717015848313,-349.649319,0.00022468,7]
[328181679,1717015848322,-349.649319,0.00022468,7]
[328181680,1717015848332,-363.188872,0.00022468,7]
[328181681,1717015848341,-363.188872,0.00022468,7]
[328181682,1717015848350,-803.843456,0.00022468,7]
[328181683,1717015848369,-151.0,0.00022468,7]
[328181684,1717015848379,-803.843456,0.00022468,7]
[328181685,1717015848389,-244.471996,0.00022468,7]
[328181686,1717015848398,-244.471996,0.00022468,7]
[328181687,1717015848408,-151.0,0.00022468,7]
[328181688,1717015848418,-196.4601,0.00022468,7]
[328181689,1717015848427,-196.4601,0.00022468,7]
[328181690,1717015848437,-10673.6924543,0.000225,2]
[328181691,1717015848449,-150.0,0.000225,3]
[328181692,1717015848458,-150.0,0.000225,3]
[328181693,1717015848467,-179.34,0.00022603,2]
[328181694,1717015848476,-1520.67512482,0.00022649,2]
[328181695,1717015848486,-7359.55983788,0.00022777,2]
[328181696,1717015848496,-243.56484948,0.0002289,2]
[328181697,1717015848506,-150.0,0.00022899,10]
[328181698,1717015848515,-150.0,0.00022899,10]
[328181699,1717015848527,-150.0,0.00022899,10]
[328181700,1717015848537,-186951.41196305,0.000229,5]
[328181701,1717015848546,-12514.95512304,0.000229,5]
[328181702,1717015848556,-151.0,0.000229,7]
[328181703,1717015848565,-151.0,0.000229,7]
[328181704,1717015848574,-379.358604,0.000229,7]
[328181705,1717015848583,-379.3586,0.000229,7]
[328181706,1717015848593,-349.649319,0.000229,7]
[328181707,1717015848602,-349.649327,0.000229,7]
[328181708,1717015848611,-363.188872,0.000229,7]
[328181709,1717015848621,-363.188876,0.000229,7]
[328181710,1717015848631,-151.0,0.000229,7]
[328181711,1717015848640,-246.097025,0.000229,7]
[328181712,1717015848649,-246.097025,0.000229,7]
[328181713,1717015848658,-151.0,0.000229,7]
[328181714,1717015848668,-803.843456,0.000229,7]
[328181715,1717015848678,-151.0,0.000229,7]
[328181716,1717015848687,-803.843456,0.000229,7]
[328181717,1717015848697,-244.471996,0.000229,7]
[328181718,1717015848706,-244.471996,0.000229,7]
[328181719,1717015848715,-151.0,0.000229,7]
[328181720,1717015848724,-840.0,0.000229,7]
[328181721,1717015848734,-840.0,0.000229,7]
[328181722,1717015848743,-196.4601,0.000229,7]
[328181723,1717015848753,-196.4601,0.000229,7]
[328181724,1717015848762,-238.830138,0.000229,7]
[328181725,1717015848772,-151.22,0.00022901,2]
[328181726,1717015848781,-150.0,0.00022901,2]
[328181727,1717015848791,-150.0,0.00022901,2]
[328181728,1717015848800,-150.0,0.00022901,2]
[328181729,1717015848810,-150.0,0.00022901,2]
[328181730,1717015848819,-1006.855344,0.00023,2]
[328181731,1717015848828,-5000.0,0.00023,3]
[328181732,1717015848838,-155.48552138,0.00023,2]
[328181733,1717015848848,-155.14469288,0.00023,2]
[328181734,1717015848860,-3000.0,0.00023,2]
[328181735,1717015848870,-150.0,0.00023,3]
[328181736,1717015848880,-150.0,0.00023,3]
[328181737,1717015848890,-19730.70946264,0.000233,2]
[328181738,1717015848900,-2005.18444528,0.000234,2]
[328181739,1717015848911,-500.0,0.00023424,2]
[328181740,1717015848920,-37522.24968756,0.00023424,2]
[328181741,1717015848930,-1040.64226312,0.00023424,2]
[328181742,1717015848940,-200.0,0.00023424,2]
[328181743,1717015848949,-257.46815899,0.00023424,2]
[328181744,1717015848959,-446.03480506,0.00023424,2]
[328181745,1717015848968,-1045.0850026,0.00023424,2]
[328181746,1717015848978,-1681.86769273,0.00023424,2]
[328181747,1717015848987,-200.0,0.00023424,2]
[328181748,1717015848997,-1202.02347307,0.00023457,2]
[328181749,1717015849007,-150.0,0.000235,3]
[328181750,1717015849016,-150.0,0.000235,3]
[328181751,1717015849026,-200.0,0.0002359,7]
[328181752,1717015849035,-200.0,0.0002359,7]
[328181753,1717015849045,-206.23894438,0.0002359,7]
[328181754,1717015849054,-200.0,0.0002359,7]
[328181755,1717015849063,-156.8502723,0.00023599,10]
[328181756,1717015849073,-150.0,0.00023599,10]
[328181757,1717015849083,-150.0,0.00023599,10]
[328181758,1717015849093,-114666.02394131,0.000236,2]
[328181759,1717015849102,-320.87866612,0.000236,2]
[328181760,1717015849112,-129331.86272751,0.000236,2]
[328181761,1717015849122,-91306.11333018,0.000236,2]
[328181762,1717015849131,-151.0,0.000236,7]
[328181763,1717015849141,-151.0,0.000236,7]
[328181764,1717015849150,-246.097025,0.000236,7]
[328181765,1717015849160,-246.097025,0.000236,7]
[328181766,1717015849169,-246.097025,0.000236,7]
[328181767,1717015849178,-246.097023,0.000236,7]
[328181768,1717015849188,-151.0,0.000236,7]
[328181769,1717015849197,-151.0,0.000236,7]
[328181770,1717015849207,-803.843456,0.000236,7]
[328181771,1717015849216,-803.843456,0.000236,7]
[328181772,1717015849225,-151.0,0.000236,7]
[328181773,1717015849235,-151.0,0.000236,7]
[328181774,1717015849244,-803.843456,0.000236,7]
[328181775,1717015849254,-803.843456,0.000236,7]
[328181776,1717015849263,-244.471996,0.000236,7]
[328181777,1717015849273,-244.471996,0.000236,7]
[328181778,1717015849282,-244.471996,0.000236,7]
[328181779,1717015849291,-244.471996,0.000236,7]
[328181780,1717015849429,-151.0,0.000236,7]
[328181781,1717015849446,-840.0,0.000236,7]
[328181782,1717015849458,-840.0,0.000236,7]
[328181783,1717015849468,-840.0,0.000236,7]
[328181784,1717015849477,-840.0,0.000236,7]
[328181785,1717015849488,-196.4601,0.000236,7]
[328181786,1717015849497,-196.460098,0.000236,7]
[328181787,1717015849508,-200.0,0.00023658,2]
[328181788,1717015849517,-1598.07327763,0.00023755,28]
[328181789,1717015849528,-592.83,0.000238,2]
[328181790,1717015849539,-3745.0,0.0002381,2]
[328181791,1717015849548,-151.0,0.00023902,7]
[328181792,1717015849557,-1437.8761664,0.0002399,2]
[328181793,1717015849568,-583.17736051,0.00024,3]
[328181794,1717015849578,-56410.51906546,0.00024,15]
[328181795,1717015849594,-12468.86960386,0.00024,15]
[328181796,1717015849607,-31899.70376528,0.00024,15]
[328181797,1717015849617,-179.26742117,0.00024,2]
[328181798,1717015849627,-436.66730342,0.00024,2]
[328181799,1717015849637,-150.0,0.00024,4]
[328181800,1717015849646,-150.0,0.00024,4]
[328181801,1717015849657,-164.0,0.00024,2]
[328181802,1717015849666,-237.25072651,0.00024025,2]
[328181803,1717015849676,-1117.68312158,0.0002421,2]
[328181804,1717015849687,-180.0,0.0002423,2]
[328181805,1717015849696,-63346.20901356,0.00024235,2]
[328181806,1717015849752,-5256.69376211,0.00024235,2]
[328181807,1717015849764,-2015.96062922,0.00024306,2]
[328181808,1717015849815,-521.60000002,0.000199,2]
[328181809,1717015849827,-1036.07999998,0.000199,2]
[328181810,1717015849836,-1363.64361491,0.00024306,2]
[328181811,1717015850569,-1348.72,9.63e-05,2]
[328181812,1717015850717,-302.85004585,9.63e-05,2]
[328181813,1717015851011,-1215.39853562,9.63e-05,2]
[328181814,1717015851823,-365.65634651,9.63e-05,2]
[328181815,1717015851835,-7879.69676075,9.63e-05,2]
[328181816,1717015851846,-2588.34354534,9.63e-05,2]
[328181817,1717015851857,-1757.5235759,9.63e-05,2]
[328181818,1717015851871,-1792.06119003,9.63e-05,2]
[328181819,1717015851880,-155.26105751,0.00012999,2]
[328181820,1717015851891,-151.0,0.00013,2]
[328181821,1717015851900,-151.0,0.00013,2]
[328181822,1717015851910,-652.05,0.00019409,2]
[328181823,1717015851919,-652.05,0.00021647,2]
[328181824,1717015851929,-1557.68,0.00022,2]
[328181825,1717015851938,-1557.68,0.000238,2]
[328181826,1717015851948,-652.05,0.00023885,2]
[328181827,1717015851957,-3029.85969406,0.00024306,2]
[328181828,1717015851968,-151.0,0.0002439,4]
[328181829,1717015851977,-3498.3080584,0.00024423,2]
[328181830,1717015851988,-2126.18586578,0.00024423,2]
[328181833,1717016418288,169.68,0.00026878,120]
[328181848,1717017032181,-718.26947629,0.00012774,2]
[328181849,1717017032191,-259.25722008,0.00012779,2]
[328181850,1717017032200,-150.0,0.0001278,2]
[328181851,1717017032210,-300.0,0.0001278,2]
[328181852,1717017032219,-150.0,0.0001278,2]
[328181853,1717017032228,-446.29332432,0.00012782,2]
[328181854,1717017032237,-222.27706808,0.00012793,2]
[328181855,1717017032246,-514.41797551,0.00012898,2]
[328181856,1717017032256,-1188.00054448,0.00012998,2]
[328181857,1717017032265,-222.27706795,0.0001339,2]
[328181858,1717017032274,-732.44,0.00013543,2]
[328181859,1717017032283,-499.99,0.00013543,2]
[328181860,1717017032293,-360.23745295,0.00013544,2]
[328181861,1717017032302,-318.74671446,0.00013544,2]
[328181862,1717017032311,-2002.95900656,0.00013544,2]
[328181863,1717017032321,-155.0,0.00013544,2]
[328181864,1717017032330,-155.0,0.00013544,2]
[328181865,1717017032340,-251.19494,0.00013544,2]
[328181866,1717017032349,-499.99,0.00013544,2]
[328181867,1717017032359,-278.26,0.00013544,2]
[328181868,1717017032369,-344.36762572,0.00013545,2]
[328181869,1717017032379,-10000.0,0.00013546,2]
[328181870,1717017032391,-162.56,0.00013973,2]